{"text_format":"3","workbook":"xlsx","n_sheets":4,"sheets":["Start","Rapport over månedsbudget","Månedlige udgifter","Yderligere data"],"not_rendered":{"charts":1,"defined_names":4,"pivot_tables":2},"read":"whole","date_system":"1900"}

{"sheet":"Start","index":0,"n_rows":8,"n_cols":2,"rows_kept":8}
[null,"OM DENNE SKABELON"]
[null,"Brug denne projektmappe til at holde styr på dine udgifter og oprette et familiebudget."]
[null,"Angiv forventede og faktiske indtægter fra forskellige kilder i regnearket Rapport over månedsbudget og forventede og faktiske brugte beløb i forskellige kategorier i regnearket Månedlige udgifter."]
[null,"Forventet og faktisk saldo samt difference beregnes automatisk, og Budgetsammendrag og diagrammet Budgetoversigt opdateres i regnearket Rapport over månedsbudget."]
[null,"Du kan redigere eller angive en ny kategori i tabellen i regnearket Yderligere data."]
[null,"Bemærk! "]
[null,"Yderligere instruktioner findes i kolonne A i regnearket RAPPORT OVER MÅNEDSBUDGET og i celle A1 i regnearkene MÅNEDLIGE UDGIFTER og YDERLIGERE DATA. Denne tekst er skjult med vilje. Du kan fjerne tekst ved at markere kolonne A eller celle A1 og derefter trykke på Delete. For ikke længere at skjule tekst skal du markere kolonne A eller celle A1 og derefter ændre skriftfarven."]
[null,"Hvis du vil vide mere om tabeller, skal du trykke på Skift og derefter F10, mens du er i en tabel, vælge indstillingen Tabel og derefter vælge Alternativ tekst. I en pivottabel skal du trykke på Skift og derefter F10, mens du er i en tabel skal du vælge Indstillinger for pivottabel og derefter vælge fanen Alternativ tekst."]

{"sheet":"Rapport over månedsbudget","index":1,"n_rows":34,"n_cols":14,"rows_kept":34,"merged":[[0,1,0,4],[0,5,0,7],[0,12,0,13],[1,9,5,13],[2,2,2,5],[3,2,3,5],[4,2,4,5],[7,1,10,1],[7,5,10,5],[7,6,10,6],[8,9,31,9],[12,1,16,1],[12,5,16,5],[12,6,16,6],[19,1,34,6]]}
["Opret en rapport over månedsbudget i dette regneark. Titlen på dette regneark er i cellen til højre, og undertitlen er i celle J1. Markér celle F1 for at gå til regnearket Månedlige udgifter. I cellerne i denne kolonne vises en udførlig vejledning i, hvordan man bruger dette regneark.","Budgetoversigt",{"$nulls":3},"Månedlige udgifter",{"$nulls":3},"Budgetsammendrag",null,null,"Der er en enkelt grøn hvedestængel i denne celle."]
["\"Saldo\" står i cellen til højre. Pivottabel-udsnit til at filtrere tabeldata er i cellerne J2 til N6. Hold Ctrl-tasten nede for at vælge flere kategorier.","Saldo",{"$nulls":7},"Kategoriudsnit til at filtrere pivottabellen nedenfor efter den valgte kategori er i denne celle."]
["\"Forventet saldo\" står i cellen til højre. Forventet saldo beregnes automatisk i celle G3.","Forventet saldo","(Forventet minus udgifter)",{"$nulls":3},{"$f":"D17-SUM(Budgetoplysninger[Forventede omkostninger])","v":{"v":1585,"d":"kr. 1,585"}}]
["\"Faktisk saldo\" står i cellen til højre. Faktisk saldo beregnes i celle G4.","Faktisk saldo ","(Faktisk minus udgifter)",{"$nulls":3},{"$f":"D11-SUM(Budgetoplysninger[Faktiske omkostninger])","v":{"v":1740,"d":"kr. 1,740"}}]
["Difference står i cellen til højre. Difference beregnes automatisk i celle G5. Den næste vejledning er i celle A7.","Difference","(Faktisk minus forventet)",{"$nulls":3},{"$f":"G4-G3","v":{"v":155,"d":"kr. 155"}}]
[]
["\"Indtægter\" står i cellen i højre, \"Udgifter\" står i celle F7, og \"Budgetsammendrag\" står i celle J7.","Indtægter",{"$nulls":3},"Udgifter",{"$nulls":3},"Markér nedenstående pivottabel, og vælg derefter Opdater på fanen Analysér for at opdatere."]
["\"Faktiske indtægter\" står i cellen til højre, og \"Faktiske udgifter\" står i celle F8. Angiv Indtægt 1 i celle D8. Faktiske udgifter beregnes automatisk i celle G8.","FAKTISK","Indtægt 1",{"v":5800,"d":"kr. 5,800"},null,"FAKTISK",{"$f":"SUM(Budgetoplysninger[Faktiske omkostninger])","v":{"v":7860,"d":"kr. 7,860"}}]
["Angiv Indtægt 2 i celle D9. Billedet er i celle J9. Pivottabel begynder i celle K9. Vælg Opdater på fanen Analysér for at opdatere pivottabellen.",null,"Indtægt 2",{"v":2300,"d":"kr. 2,300"},{"$nulls":5},"Billedet er i denne celle.","Kategori","Forventede omkostninger ","Faktiske omkostninger ","Difference "]
["Angiv Yderligere indtægt i celle D10.",null,"Yderligere indtægt",{"v":1500,"d":"kr. 1,500"},{"$nulls":6},"Børn",{"v":140,"d":"kr. 140"},{"v":140,"d":"kr. 140"},{"v":0,"d":"kr. 0"}]
["Indtægt i alt står i celle C11, og de samlede indtægter beregnes automatisk i celle D11. Den næste vejledning er i celle A13.",null,"Indtægt i alt",{"$f":"SUM(D8:D10)","v":{"v":9600,"d":"kr. 9,600"}}]
[{"$nulls":10},"Underholdning",{"v":400,"d":"kr. 400"},{"v":358,"d":"kr. 358"},{"v":42,"d":"kr. 42"}]
["\"Forventede indtægter\" står i cellen til højre, og \"Forventede udgifter\" står i celle F13. Forventede udgifter beregnes automatisk i celle G13.","FORVENTET",{"$nulls":3},"FORVENTET",{"$f":"SUM(Budgetoplysninger[Forventede omkostninger])","v":{"v":7915,"d":"kr. 7,915"}}]
["Angiv forventninger til Indtægt 1 i celle D14.",null,"Indtægt 1",{"v":6000,"d":"kr. 6,000"},{"$nulls":6},"Mad",{"v":1100,"d":"kr. 1,100"},{"v":1320,"d":"kr. 1,320"},{"v":-220,"d":"kr. -220"}]
["Angiv forventninger til Indtægt 2 i celle D15.",null,"Indtægt 2",{"v":1000,"d":"kr. 1,000"}]
["Angiv Yderligere indtægt i celle D16.",null,"Yderligere indtægt",{"v":2500,"d":"kr. 2,500"},{"$nulls":6},"Gaver og velgørenhed",{"v":100,"d":"kr. 100"},{"v":125,"d":"kr. 125"},{"v":-25,"d":"kr. -25"}]
["Indtægt i alt står i celle C17, og de samlede indtægter beregnes automatisk i celle D17. Den næste vejledning er i celle A20.",null,"Indtægt i alt",{"$f":"SUM(D14:D16)","v":{"v":9500,"d":"kr. 9,500"}}]
[{"$nulls":10},"Bolig",{"v":2830,"d":"kr. 2,830"},{"v":2702,"d":"kr. 2,702"},{"v":128,"d":"kr. 128"}]
[]
["Cirkeldiagram, der viser procentdelen af udgifter efter kategori, findes i cellen til højre.","Cirkeldiagram, der viser procentdelen af udgifter efter kategori, findes i denne celle.",{"$nulls":8},"Forsikring",{"v":900,"d":"kr. 900"},{"v":900,"d":"kr. 900"},{"v":0,"d":"kr. 0"}]
[]
[{"$nulls":10},"Lån",{"v":200,"d":"kr. 200"},{"v":200,"d":"kr. 200"},{"v":0,"d":"kr. 0"}]
[]
[{"$nulls":10},"Personlig pleje",{"v":150,"d":"kr. 150"},{"v":140,"d":"kr. 140"},{"v":10,"d":"kr. 10"}]
[]
[{"$nulls":10},"Kæledyr",{"v":170,"d":"kr. 170"},{"v":100,"d":"kr. 100"},{"v":70,"d":"kr. 70"}]
[]
[{"$nulls":10},"Opsparinger eller investeringer",{"v":200,"d":"kr. 200"},{"v":200,"d":"kr. 200"},{"v":0,"d":"kr. 0"}]
[]
[{"$nulls":10},"Skat",{"v":300,"d":"kr. 300"},{"v":300,"d":"kr. 300"},{"v":0,"d":"kr. 0"}]
[]
[{"$nulls":10},"Transport",{"v":1425,"d":"kr. 1,425"},{"v":1375,"d":"kr. 1,375"},{"v":50,"d":"kr. 50"}]
[]
[{"$nulls":10},"Hovedtotal",{"v":7915,"d":"kr. 7,915"},{"v":7860,"d":"kr. 7,860"},{"v":55,"d":"kr. 55"}]

{"sheet":"Månedlige udgifter","index":2,"n_rows":62,"n_cols":7,"rows_kept":62,"merged":[[0,1,0,4],[0,5,0,6]]}
["Beregn dine månedlige udgifter i dette regneark. Titlen på dette regneark vises i cellen til højre. Markér celle for at gå til regnearket Rapport over månedsbudget.","Månedlige udgifter",{"$nulls":3},"Rapport over månedsbudget"]
[" Angiv data i tabellen Budgetoplysninger, der starter i cellen til højre.","Beskrivelse","Kategori","Forventede omkostninger","Faktiske omkostninger","Difference","Oversigt over faktiske omkostninger"]
[null,"Ekstraaktiviteter i forbindelse med skole/studier","Børn",{"v":40,"d":"kr. 40"},{"v":40,"d":"kr. 40"},{"$f":"Budgetoplysninger[[#This Row],[Forventede omkostninger]]-Budgetoplysninger[[#This Row],[Faktiske omkostninger]]","v":{"v":0,"d":"kr. 0"}},{"$f":"Budgetoplysninger[[#This Row],[Faktiske omkostninger]]","v":{"v":40,"d":"kr. 40"}}]
[null,"Medicin","Børn",null,null,{"$f":"Budgetoplysninger[[#This Row],[Forventede omkostninger]]-Budgetoplysninger[[#This Row],[Faktiske omkostninger]]","v":{"v":0,"d":"kr. 0"}},{"$f":"Budgetoplysninger[[#This Row],[Faktiske omkostninger]]","v":{"v":0,"d":"kr. 0"}}]
[null,"Skoleartikler","Børn",null,null,{"$f":"Budgetoplysninger[[#This Row],[Forventede omkostninger]]-Budgetoplysninger[[#This Row],[Faktiske omkostninger]]","v":{"v":0,"d":"kr. 0"}},{"$f":"Budgetoplysninger[[#This Row],[Faktiske omkostninger]]","v":{"v":0,"d":"kr. 0"}}]
[null,"Skolebetaling","Børn",{"v":100,"d":"kr. 100"},{"v":100,"d":"kr. 100"},{"$f":"Budgetoplysninger[[#This Row],[Forventede omkostninger]]-Budgetoplysninger[[#This Row],[Faktiske omkostninger]]","v":{"v":0,"d":"kr. 0"}},{"$f":"Budgetoplysninger[[#This Row],[Faktiske omkostninger]]","v":{"v":100,"d":"kr. 100"}}]
[null,"Koncerter","Underholdning",{"v":50,"d":"kr. 50"},{"v":40,"d":"kr. 40"},{"$f":"Budgetoplysninger[[#This Row],[Forventede omkostninger]]-Budgetoplysninger[[#This Row],[Faktiske omkostninger]]","v":{"v":10,"d":"kr. 10"}},{"$f":"Budgetoplysninger[[#This Row],[Faktiske omkostninger]]","v":{"v":40,"d":"kr. 40"}}]
[null,"Teater","Underholdning",{"v":200,"d":"kr. 200"},{"v":150,"d":"kr. 150"},{"$f":"Budgetoplysninger[[#This Row],[Forventede omkostninger]]-Budgetoplysninger[[#This Row],[Faktiske omkostninger]]","v":{"v":50,"d":"kr. 50"}},{"$f":"Budgetoplysninger[[#This Row],[Faktiske omkostninger]]","v":{"v":150,"d":"kr. 150"}}]
[null,"Biograf","Underholdning",{"v":50,"d":"kr. 50"},{"v":28,"d":"kr. 28"},{"$f":"Budgetoplysninger[[#This Row],[Forventede omkostninger]]-Budgetoplysninger[[#This Row],[Faktiske omkostninger]]","v":{"v":22,"d":"kr. 22"}},{"$f":"Budgetoplysninger[[#This Row],[Faktiske omkostninger]]","v":{"v":28,"d":"kr. 28"}}]
[null,"Musik (cd'er, streaming osv.)","Underholdning",{"v":50,"d":"kr. 50"},{"v":30,"d":"kr. 30"},{"$f":"Budgetoplysninger[[#This Row],[Forventede omkostninger]]-Budgetoplysninger[[#This Row],[Faktiske omkostninger]]","v":{"v":20,"d":"kr. 20"}},{"$f":"Budgetoplysninger[[#This Row],[Faktiske omkostninger]]","v":{"v":30,"d":"kr. 30"}}]
[null,"Sportsbegivenheder","Underholdning",{"v":0,"d":"kr. 0"},{"v":40,"d":"kr. 40"},{"$f":"Budgetoplysninger[[#This Row],[Forventede omkostninger]]-Budgetoplysninger[[#This Row],[Faktiske omkostninger]]","v":{"v":-40,"d":"kr. -40"}},{"$f":"Budgetoplysninger[[#This Row],[Faktiske omkostninger]]","v":{"v":40,"d":"kr. 40"}}]
[null,"Video/dvd (køb)","Underholdning",{"v":20,"d":"kr. 20"},{"v":50,"d":"kr. 50"},{"$f":"Budgetoplysninger[[#This Row],[Forventede omkostninger]]-Budgetoplysninger[[#This Row],[Faktiske omkostninger]]","v":{"v":-30,"d":"kr. -30"}},{"$f":"Budgetoplysninger[[#This Row],[Faktiske omkostninger]]","v":{"v":50,"d":"kr. 50"}}]
[null,"Video/dvd (leje)","Underholdning",{"v":30,"d":"kr. 30"},{"v":20,"d":"kr. 20"},{"$f":"Budgetoplysninger[[#This Row],[Forventede omkostninger]]-Budgetoplysninger[[#This Row],[Faktiske omkostninger]]","v":{"v":10,"d":"kr. 10"}},{"$f":"Budgetoplysninger[[#This Row],[Faktiske omkostninger]]","v":{"v":20,"d":"kr. 20"}}]
[null,"Restaurantbesøg","Mad",{"v":1000,"d":"kr. 1,000"},{"v":1200,"d":"kr. 1,200"},{"$f":"Budgetoplysninger[[#This Row],[Forventede omkostninger]]-Budgetoplysninger[[#This Row],[Faktiske omkostninger]]","v":{"v":-200,"d":"kr. -200"}},{"$f":"Budgetoplysninger[[#This Row],[Faktiske omkostninger]]","v":{"v":1200,"d":"kr. 1,200"}}]
[null,"Dagligvarer","Mad",{"v":100,"d":"kr. 100"},{"v":120,"d":"kr. 120"},{"$f":"Budgetoplysninger[[#This Row],[Forventede omkostninger]]-Budgetoplysninger[[#This Row],[Faktiske omkostninger]]","v":{"v":-20,"d":"kr. -20"}},{"$f":"Budgetoplysninger[[#This Row],[Faktiske omkostninger]]","v":{"v":120,"d":"kr. 120"}}]
[null,"Velgørenhed 1","Gaver og velgørenhed",{"v":75,"d":"kr. 75"},{"v":100,"d":"kr. 100"},{"$f":"Budgetoplysninger[[#This Row],[Forventede omkostninger]]-Budgetoplysninger[[#This Row],[Faktiske omkostninger]]","v":{"v":-25,"d":"kr. -25"}},{"$f":"Budgetoplysninger[[#This Row],[Faktiske omkostninger]]","v":{"v":100,"d":"kr. 100"}}]
[null,"Velgørenhed 2","Gaver og velgørenhed",{"v":25,"d":"kr. 25"},{"v":25,"d":"kr. 25"},{"$f":"Budgetoplysninger[[#This Row],[Forventede omkostninger]]-Budgetoplysninger[[#This Row],[Faktiske omkostninger]]","v":{"v":0,"d":"kr. 0"}},{"$f":"Budgetoplysninger[[#This Row],[Faktiske omkostninger]]","v":{"v":25,"d":"kr. 25"}}]
[null,"Gave 1","Gaver og velgørenhed",null,null,{"$f":"Budgetoplysninger[[#This Row],[Forventede omkostninger]]-Budgetoplysninger[[#This Row],[Faktiske omkostninger]]","v":{"v":0,"d":"kr. 0"}},{"$f":"Budgetoplysninger[[#This Row],[Faktiske omkostninger]]","v":{"v":0,"d":"kr. 0"}}]
[null,"Gave 2","Gaver og velgørenhed",null,null,{"$f":"Budgetoplysninger[[#This Row],[Forventede omkostninger]]-Budgetoplysninger[[#This Row],[Faktiske omkostninger]]","v":{"v":0,"d":"kr. 0"}},{"$f":"Budgetoplysninger[[#This Row],[Faktiske omkostninger]]","v":{"v":0,"d":"kr. 0"}}]
[null,"Kabel/satellit-tv","Bolig",{"v":100,"d":"kr. 100"},{"v":100,"d":"kr. 100"},{"$f":"Budgetoplysninger[[#This Row],[Forventede omkostninger]]-Budgetoplysninger[[#This Row],[Faktiske omkostninger]]","v":{"v":0,"d":"kr. 0"}},{"$f":"Budgetoplysninger[[#This Row],[Faktiske omkostninger]]","v":{"v":100,"d":"kr. 100"}}]
[null,"Elektricitet","Bolig",{"v":45,"d":"kr. 45"},{"v":50,"d":"kr. 50"},{"$f":"Budgetoplysninger[[#This Row],[Forventede omkostninger]]-Budgetoplysninger[[#This Row],[Faktiske omkostninger]]","v":{"v":-5,"d":"kr. -5"}},{"$f":"Budgetoplysninger[[#This Row],[Faktiske omkostninger]]","v":{"v":50,"d":"kr. 50"}}]
[null,"Gas","Bolig",{"v":300,"d":"kr. 300"},{"v":400,"d":"kr. 400"},{"$f":"Budgetoplysninger[[#This Row],[Forventede omkostninger]]-Budgetoplysninger[[#This Row],[Faktiske omkostninger]]","v":{"v":-100,"d":"kr. -100"}},{"$f":"Budgetoplysninger[[#This Row],[Faktiske omkostninger]]","v":{"v":400,"d":"kr. 400"}}]
[null,"Rengøringshjælp","Bolig",{"v":200,"d":"kr. 200"},null,{"$f":"Budgetoplysninger[[#This Row],[Forventede omkostninger]]-Budgetoplysninger[[#This Row],[Faktiske omkostninger]]","v":{"v":200,"d":"kr. 200"}},{"$f":"Budgetoplysninger[[#This Row],[Faktiske omkostninger]]","v":{"v":0,"d":"kr. 0"}}]
[null,"Vedligeholdelse","Bolig",{"v":200,"d":"kr. 200"},{"v":150,"d":"kr. 150"},{"$f":"Budgetoplysninger[[#This Row],[Forventede omkostninger]]-Budgetoplysninger[[#This Row],[Faktiske omkostninger]]","v":{"v":50,"d":"kr. 50"}},{"$f":"Budgetoplysninger[[#This Row],[Faktiske omkostninger]]","v":{"v":150,"d":"kr. 150"}}]
[null,"Realkreditlån eller husleje","Bolig",{"v":1700,"d":"kr. 1,700"},{"v":1700,"d":"kr. 1,700"},{"$f":"Budgetoplysninger[[#This Row],[Forventede omkostninger]]-Budgetoplysninger[[#This Row],[Faktiske omkostninger]]","v":{"v":0,"d":"kr. 0"}},{"$f":"Budgetoplysninger[[#This Row],[Faktiske omkostninger]]","v":{"v":1700,"d":"kr. 1,700"}}]
[null,"Naturgas/olie","Bolig",null,null,{"$f":"Budgetoplysninger[[#This Row],[Forventede omkostninger]]-Budgetoplysninger[[#This Row],[Faktiske omkostninger]]","v":{"v":0,"d":"kr. 0"}},{"$f":"Budgetoplysninger[[#This Row],[Faktiske omkostninger]]","v":{"v":0,"d":"kr. 0"}}]
[null,"Internetforbindelse","Bolig",{"v":100,"d":"kr. 100"},{"v":100,"d":"kr. 100"},{"$f":"Budgetoplysninger[[#This Row],[Forventede omkostninger]]-Budgetoplysninger[[#This Row],[Faktiske omkostninger]]","v":{"v":0,"d":"kr. 0"}},{"$f":"Budgetoplysninger[[#This Row],[Faktiske omkostninger]]","v":{"v":100,"d":"kr. 100"}}]
[null,"Telefon (mobil)","Bolig",{"v":60,"d":"kr. 60"},{"v":60,"d":"kr. 60"},{"$f":"Budgetoplysninger[[#This Row],[Forventede omkostninger]]-Budgetoplysninger[[#This Row],[Faktiske omkostninger]]","v":{"v":0,"d":"kr. 0"}},{"$f":"Budgetoplysninger[[#This Row],[Faktiske omkostninger]]","v":{"v":60,"d":"kr. 60"}}]
[null,"Telefon (hjemme)","Bolig",{"v":35,"d":"kr. 35"},{"v":39,"d":"kr. 39"},{"$f":"Budgetoplysninger[[#This Row],[Forventede omkostninger]]-Budgetoplysninger[[#This Row],[Faktiske omkostninger]]","v":{"v":-4,"d":"kr. -4"}},{"$f":"Budgetoplysninger[[#This Row],[Faktiske omkostninger]]","v":{"v":39,"d":"kr. 39"}}]
[null,"Forsyninger","Bolig",{"v":40,"d":"kr. 40"},{"v":55,"d":"kr. 55"},{"$f":"Budgetoplysninger[[#This Row],[Forventede omkostninger]]-Budgetoplysninger[[#This Row],[Faktiske omkostninger]]","v":{"v":-15,"d":"kr. -15"}},{"$f":"Budgetoplysninger[[#This Row],[Faktiske omkostninger]]","v":{"v":55,"d":"kr. 55"}}]
[null,"Bortskaffelse af affald og genbrug","Bolig",{"v":25,"d":"kr. 25"},{"v":22,"d":"kr. 22"},{"$f":"Budgetoplysninger[[#This Row],[Forventede omkostninger]]-Budgetoplysninger[[#This Row],[Faktiske omkostninger]]","v":{"v":3,"d":"kr. 3"}},{"$f":"Budgetoplysninger[[#This Row],[Faktiske omkostninger]]","v":{"v":22,"d":"kr. 22"}}]
[null,"Vand og kloak","Bolig",{"v":25,"d":"kr. 25"},{"v":26,"d":"kr. 26"},{"$f":"Budgetoplysninger[[#This Row],[Forventede omkostninger]]-Budgetoplysninger[[#This Row],[Faktiske omkostninger]]","v":{"v":-1,"d":"kr. -1"}},{"$f":"Budgetoplysninger[[#This Row],[Faktiske omkostninger]]","v":{"v":26,"d":"kr. 26"}}]
[null,"Sundhedsforsikring","Forsikring",{"v":400,"d":"kr. 400"},{"v":400,"d":"kr. 400"},{"$f":"Budgetoplysninger[[#This Row],[Forventede omkostninger]]-Budgetoplysninger[[#This Row],[Faktiske omkostninger]]","v":{"v":0,"d":"kr. 0"}},{"$f":"Budgetoplysninger[[#This Row],[Faktiske omkostninger]]","v":{"v":400,"d":"kr. 400"}}]
[null,"Ejendomsforsikring","Forsikring",{"v":400,"d":"kr. 400"},{"v":400,"d":"kr. 400"},{"$f":"Budgetoplysninger[[#This Row],[Forventede omkostninger]]-Budgetoplysninger[[#This Row],[Faktiske omkostninger]]","v":{"v":0,"d":"kr. 0"}},{"$f":"Budgetoplysninger[[#This Row],[Faktiske omkostninger]]","v":{"v":400,"d":"kr. 400"}}]
[null,"Livsforsikring","Forsikring",{"v":100,"d":"kr. 100"},{"v":100,"d":"kr. 100"},{"$f":"Budgetoplysninger[[#This Row],[Forventede omkostninger]]-Budgetoplysninger[[#This Row],[Faktiske omkostninger]]","v":{"v":0,"d":"kr. 0"}},{"$f":"Budgetoplysninger[[#This Row],[Faktiske omkostninger]]","v":{"v":100,"d":"kr. 100"}}]
[null,"Kreditkort 1","Lån",{"v":200,"d":"kr. 200"},{"v":200,"d":"kr. 200"},{"$f":"Budgetoplysninger[[#This Row],[Forventede omkostninger]]-Budgetoplysninger[[#This Row],[Faktiske omkostninger]]","v":{"v":0,"d":"kr. 0"}},{"$f":"Budgetoplysninger[[#This Row],[Faktiske omkostninger]]","v":{"v":200,"d":"kr. 200"}}]
[null,"Kreditkort 2","Lån",null,null,{"$f":"Budgetoplysninger[[#This Row],[Forventede omkostninger]]-Budgetoplysninger[[#This Row],[Faktiske omkostninger]]","v":{"v":0,"d":"kr. 0"}},{"$f":"Budgetoplysninger[[#This Row],[Faktiske omkostninger]]","v":{"v":0,"d":"kr. 0"}}]
[null,"Kreditkort 3","Lån",null,null,{"$f":"Budgetoplysninger[[#This Row],[Forventede omkostninger]]-Budgetoplysninger[[#This Row],[Faktiske omkostninger]]","v":{"v":0,"d":"kr. 0"}},{"$f":"Budgetoplysninger[[#This Row],[Faktiske omkostninger]]","v":{"v":0,"d":"kr. 0"}}]
[null,"Privat","Lån",null,null,{"$f":"Budgetoplysninger[[#This Row],[Forventede omkostninger]]-Budgetoplysninger[[#This Row],[Faktiske omkostninger]]","v":{"v":0,"d":"kr. 0"}},{"$f":"Budgetoplysninger[[#This Row],[Faktiske omkostninger]]","v":{"v":0,"d":"kr. 0"}}]
[null,"Studielån","Lån",null,null,{"$f":"Budgetoplysninger[[#This Row],[Forventede omkostninger]]-Budgetoplysninger[[#This Row],[Faktiske omkostninger]]","v":{"v":0,"d":"kr. 0"}},{"$f":"Budgetoplysninger[[#This Row],[Faktiske omkostninger]]","v":{"v":0,"d":"kr. 0"}}]
[null,"Beklædning","Personlig pleje",{"v":150,"d":"kr. 150"},{"v":140,"d":"kr. 140"},{"$f":"Budgetoplysninger[[#This Row],[Forventede omkostninger]]-Budgetoplysninger[[#This Row],[Faktiske omkostninger]]","v":{"v":10,"d":"kr. 10"}},{"$f":"Budgetoplysninger[[#This Row],[Faktiske omkostninger]]","v":{"v":140,"d":"kr. 140"}}]
[null,"Tøjrens","Personlig pleje",null,null,{"$f":"Budgetoplysninger[[#This Row],[Forventede omkostninger]]-Budgetoplysninger[[#This Row],[Faktiske omkostninger]]","v":{"v":0,"d":"kr. 0"}},{"$f":"Budgetoplysninger[[#This Row],[Faktiske omkostninger]]","v":{"v":0,"d":"kr. 0"}}]
[null,"Hår/negle","Personlig pleje",null,null,{"$f":"Budgetoplysninger[[#This Row],[Forventede omkostninger]]-Budgetoplysninger[[#This Row],[Faktiske omkostninger]]","v":{"v":0,"d":"kr. 0"}},{"$f":"Budgetoplysninger[[#This Row],[Faktiske omkostninger]]","v":{"v":0,"d":"kr. 0"}}]
[null,"Fitnesscenter","Personlig pleje",null,null,{"$f":"Budgetoplysninger[[#This Row],[Forventede omkostninger]]-Budgetoplysninger[[#This Row],[Faktiske omkostninger]]","v":{"v":0,"d":"kr. 0"}},{"$f":"Budgetoplysninger[[#This Row],[Faktiske omkostninger]]","v":{"v":0,"d":"kr. 0"}}]
[null,"Medicin","Personlig pleje",null,null,{"$f":"Budgetoplysninger[[#This Row],[Forventede omkostninger]]-Budgetoplysninger[[#This Row],[Faktiske omkostninger]]","v":{"v":0,"d":"kr. 0"}},{"$f":"Budgetoplysninger[[#This Row],[Faktiske omkostninger]]","v":{"v":0,"d":"kr. 0"}}]
[null,"Mad","Kæledyr",{"v":150,"d":"kr. 150"},{"v":75,"d":"kr. 75"},{"$f":"Budgetoplysninger[[#This Row],[Forventede omkostninger]]-Budgetoplysninger[[#This Row],[Faktiske omkostninger]]","v":{"v":75,"d":"kr. 75"}},{"$f":"Budgetoplysninger[[#This Row],[Faktiske omkostninger]]","v":{"v":75,"d":"kr. 75"}}]
[null,"Pleje","Kæledyr",{"v":20,"d":"kr. 20"},{"v":25,"d":"kr. 25"},{"$f":"Budgetoplysninger[[#This Row],[Forventede omkostninger]]-Budgetoplysninger[[#This Row],[Faktiske omkostninger]]","v":{"v":-5,"d":"kr. -5"}},{"$f":"Budgetoplysninger[[#This Row],[Faktiske omkostninger]]","v":{"v":25,"d":"kr. 25"}}]
[null,"Medicin","Kæledyr",null,null,{"$f":"Budgetoplysninger[[#This Row],[Forventede omkostninger]]-Budgetoplysninger[[#This Row],[Faktiske omkostninger]]","v":{"v":0,"d":"kr. 0"}},{"$f":"Budgetoplysninger[[#This Row],[Faktiske omkostninger]]","v":{"v":0,"d":"kr. 0"}}]
[null,"Legetøj","Kæledyr",null,null,{"$f":"Budgetoplysninger[[#This Row],[Forventede omkostninger]]-Budgetoplysninger[[#This Row],[Faktiske omkostninger]]","v":{"v":0,"d":"kr. 0"}},{"$f":"Budgetoplysninger[[#This Row],[Faktiske omkostninger]]","v":{"v":0,"d":"kr. 0"}}]
[null,"Investeringskonto","Opsparinger eller investeringer",{"v":200,"d":"kr. 200"},{"v":200,"d":"kr. 200"},{"$f":"Budgetoplysninger[[#This Row],[Forventede omkostninger]]-Budgetoplysninger[[#This Row],[Faktiske omkostninger]]","v":{"v":0,"d":"kr. 0"}},{"$f":"Budgetoplysninger[[#This Row],[Faktiske omkostninger]]","v":{"v":200,"d":"kr. 200"}}]
[null,"Pensionskonto","Opsparinger eller investeringer",null,null,{"$f":"Budgetoplysninger[[#This Row],[Forventede omkostninger]]-Budgetoplysninger[[#This Row],[Faktiske omkostninger]]","v":{"v":0,"d":"kr. 0"}},{"$f":"Budgetoplysninger[[#This Row],[Faktiske omkostninger]]","v":{"v":0,"d":"kr. 0"}}]
[null,"Bundskat","Skat",{"v":300,"d":"kr. 300"},{"v":300,"d":"kr. 300"},{"$f":"Budgetoplysninger[[#This Row],[Forventede omkostninger]]-Budgetoplysninger[[#This Row],[Faktiske omkostninger]]","v":{"v":0,"d":"kr. 0"}},{"$f":"Budgetoplysninger[[#This Row],[Faktiske omkostninger]]","v":{"v":300,"d":"kr. 300"}}]
[null,"Kommuneskat","Skat",null,null,{"$f":"Budgetoplysninger[[#This Row],[Forventede omkostninger]]-Budgetoplysninger[[#This Row],[Faktiske omkostninger]]","v":{"v":0,"d":"kr. 0"}},{"$f":"Budgetoplysninger[[#This Row],[Faktiske omkostninger]]","v":{"v":0,"d":"kr. 0"}}]
[null,"Sundhedsbidrag","Skat",null,null,{"$f":"Budgetoplysninger[[#This Row],[Forventede omkostninger]]-Budgetoplysninger[[#This Row],[Faktiske omkostninger]]","v":{"v":0,"d":"kr. 0"}},{"$f":"Budgetoplysninger[[#This Row],[Faktiske omkostninger]]","v":{"v":0,"d":"kr. 0"}}]
[null,"Udgifter til bus/taxa","Transport",{"v":100,"d":"kr. 100"},{"v":150,"d":"kr. 150"},{"$f":"Budgetoplysninger[[#This Row],[Forventede omkostninger]]-Budgetoplysninger[[#This Row],[Faktiske omkostninger]]","v":{"v":-50,"d":"kr. -50"}},{"$f":"Budgetoplysninger[[#This Row],[Faktiske omkostninger]]","v":{"v":150,"d":"kr. 150"}}]
[null,"Brændstof","Transport",{"v":450,"d":"kr. 450"},{"v":400,"d":"kr. 400"},{"$f":"Budgetoplysninger[[#This Row],[Forventede omkostninger]]-Budgetoplysninger[[#This Row],[Faktiske omkostninger]]","v":{"v":50,"d":"kr. 50"}},{"$f":"Budgetoplysninger[[#This Row],[Faktiske omkostninger]]","v":{"v":400,"d":"kr. 400"}}]
[null,"Forsikring","Transport",{"v":300,"d":"kr. 300"},{"v":300,"d":"kr. 300"},{"$f":"Budgetoplysninger[[#This Row],[Forventede omkostninger]]-Budgetoplysninger[[#This Row],[Faktiske omkostninger]]","v":{"v":0,"d":"kr. 0"}},{"$f":"Budgetoplysninger[[#This Row],[Faktiske omkostninger]]","v":{"v":300,"d":"kr. 300"}}]
[null,"Vægtafgift ","Transport",{"v":25,"d":"kr. 25"},{"v":25,"d":"kr. 25"},{"$f":"Budgetoplysninger[[#This Row],[Forventede omkostninger]]-Budgetoplysninger[[#This Row],[Faktiske omkostninger]]","v":{"v":0,"d":"kr. 0"}},{"$f":"Budgetoplysninger[[#This Row],[Faktiske omkostninger]]","v":{"v":25,"d":"kr. 25"}}]
[null,"Vedligeholdelse","Transport",{"v":100,"d":"kr. 100"},{"v":50,"d":"kr. 50"},{"$f":"Budgetoplysninger[[#This Row],[Forventede omkostninger]]-Budgetoplysninger[[#This Row],[Faktiske omkostninger]]","v":{"v":50,"d":"kr. 50"}},{"$f":"Budgetoplysninger[[#This Row],[Faktiske omkostninger]]","v":{"v":50,"d":"kr. 50"}}]
[null,"Parkeringsgebyrer","Transport",null,null,{"$f":"Budgetoplysninger[[#This Row],[Forventede omkostninger]]-Budgetoplysninger[[#This Row],[Faktiske omkostninger]]","v":{"v":0,"d":"kr. 0"}},{"$f":"Budgetoplysninger[[#This Row],[Faktiske omkostninger]]","v":{"v":0,"d":"kr. 0"}}]
[null,"Afbetaling af køretøj","Transport",{"v":450,"d":"kr. 450"},{"v":450,"d":"kr. 450"},{"$f":"Budgetoplysninger[[#This Row],[Forventede omkostninger]]-Budgetoplysninger[[#This Row],[Faktiske omkostninger]]","v":{"v":0,"d":"kr. 0"}},{"$f":"Budgetoplysninger[[#This Row],[Faktiske omkostninger]]","v":{"v":450,"d":"kr. 450"}}]
[null,"Total",null,{"$f":"SUBTOTAL(109,Budgetoplysninger[Forventede omkostninger])","v":{"v":7915,"d":"kr. 7,915"}},{"$f":"SUBTOTAL(109,Budgetoplysninger[Faktiske omkostninger])","v":{"v":7860,"d":"kr. 7,860"}},{"$f":"SUBTOTAL(109,Budgetoplysninger[Difference])","v":{"v":55,"d":"kr. 55"}}]

{"sheet":"Yderligere data","index":3,"n_rows":15,"n_cols":5,"rows_kept":15}
["Brug dette regneark til at redigere rullelisten for kolonnen Kategori i tabellen Budgetoplysninger i regnearket Månedlige udgifter. Her kan du redigere eller angive en ny kategori opslagstabellen med budgetkategorier, som starter i celle E2. Pivottabel, der er knyttet til diagrammet Budgetoversigt i Rapport over månedsbudget, starter i celle B2.","Pivottabel til diagrammet Budgetoversigt",null,null,"Opslagsliste til kategori af budgetoplysninger"]
[null,"Kategori","Omkostninger",null,"Opslag af budgetkategori"]
[null,"Børn",{"v":140,"d":"kr. 140"},null,"Børn"]
[null,"Underholdning",{"v":358,"d":"kr. 358"},null,"Underholdning"]
[null,"Mad",{"v":1320,"d":"kr. 1,320"},null,"Mad"]
[null,"Gaver og velgørenhed",{"v":125,"d":"kr. 125"},null,"Gaver og velgørenhed"]
[null,"Bolig",{"v":2702,"d":"kr. 2,702"},null,"Bolig"]
[null,"Forsikring",{"v":900,"d":"kr. 900"},null,"Forsikring"]
[null,"Lån",{"v":200,"d":"kr. 200"},null,"Lån"]
[null,"Personlig pleje",{"v":140,"d":"kr. 140"},null,"Personlig pleje"]
[null,"Kæledyr",{"v":100,"d":"kr. 100"},null,"Kæledyr"]
[null,"Opsparinger eller investeringer",{"v":200,"d":"kr. 200"},null,"Opsparinger eller investeringer"]
[null,"Skat",{"v":300,"d":"kr. 300"},null,"Skat"]
[null,"Transport",{"v":1375,"d":"kr. 1,375"},null,"Transport"]
[null,"Hovedtotal",{"v":7860,"d":"kr. 7,860"}]